bitfinex/quotes_ETHUSD_20220308
["timestamp","ask_amount","ask_price","bid_price","bid_amount"]
[1646704240070,1.08779605,2535.1,2534.3,0.87380135]
[1646704240469,1.08779605,2535.1,2534.3,1.17380135]
[1646704241124,0.0184731,2535.1,2534.5,0.98668]
[1646704241626,0.00327006,2534.8,2534.5,1.28668]
[1646704242026,0.00327006,2534.8,2534.5,4.78668]
[1646704242226,0.00327006,2534.8,2534.6,0.9865005]
[1646704242425,0.0184731,2535.1,2534.5,7.38430345]
[1646704242627,0.0184731,2535.1,2534.7,0.98656]
[1646704242827,0.00327006,2534.8,2534.7,4.48656]
[1646704243025,0.00327006,2534.8,2534.7,0.98656]
[1646704243224,0.00327006,2534.8,2534.7,3.959639]
[1646704243626,0.0184731,2535.1,2534.7,4.93576755]
[1646704244027,0.00534767,2534.9,2534.7,3.959639]
[1646704244228,0.00534767,2534.9,2534.7,4.259639]
[1646704244474,0.00534767,2534.9,2534.7,3.9461029]
[1646704244973,0.0184731,2535.1,2534.7,3.9461029]
[1646704245174,0.0184731,2535.1,2534.8,0.98659]
[1646704245774,1.0050931,2535.1,2534.8,0.98659]
[1646704246375,1.01028502,2535.1,2534.8,0.98659]
[1646704247273,1.0050931,2535.1,2534.8,0.98659]
[1646704247473,1.11175291,2535.0,2534.8,0.98659]
[1646704247676,5.5,2534.8,2534.3,2.95978]
[1646704247873,5.5,2534.8,2533.9,1.0]
[1646704248120,5.5,2534.8,2533.5,0.00519509]
[1646704248121,0.27008047,2534.6,2533.5,0.00519509]
[1646704248615,0.27008047,2534.6,2533.9,1.1103564]
[1646704248616,1.25688488,2534.6,2533.9,1.1103564]
[1646704248820,0.26195416,2534.7,2533.9,1.1103564]
[1646704249023,0.00519238,2534.5,2533.9,1.1103564]
[1646704249221,0.99197238,2534.5,2533.9,1.4103564]
[1646704249621,1.29197238,2534.5,2533.9,1.4103564]
[1646704249823,1.28678,2534.5,2533.9,1.4103564]
[1646704250022,0.00525515,2534.3,2533.9,1.4103564]
[1646704250223,0.99205515,2534.3,2533.9,2.3972247]
[1646704250423,0.99205515,2534.3,2534.1,0.98685]
[1646704250622,0.99205515,2534.3,2534.1,1.28685]
[1646704250823,1.29205515,2534.3,2534.1,1.28685]
[1646704251024,1.2868,2534.3,2534.1,1.28685]
[1646704251225,1.29205515,2534.3,2534.1,1.28685]
[1646704252263,1.2868,2534.3,2534.1,1.28685]
[1646704252464,1.29187779,2534.3,2534.1,1.28685]
[1646704253366,1.2868,2534.3,2534.1,1.28685]
[1646704253568,1.29197079,2534.3,2534.1,1.28685]
[1646704254467,2.27886079,2534.3,2533.9,2.27369]
[1646704254668,2.27886079,2534.3,2533.7,4.2474637]
[1646704254871,1.0751883,2534.2,2533.9,0.98692]
[1646704255074,2.0621283,2534.2,2533.9,0.98692]
[1646704255272,1.28694,2534.2,2533.9,0.98692]
[1646704255471,2.27391,2534.2,2533.9,0.98692]
[1646704256118,1.97897931,2534.2,2533.9,0.98692]
[1646704256319,2.27897931,2534.2,2533.9,0.98692]
[1646704256721,1.07574467,2534.1,2533.9,0.98692]
[1646704256919,3.04967467,2534.1,2533.7,4.2474637]
[1646704257219,2.27393,2534.1,2533.7,4.2474637]
[1646704257421,0.98702,2534.0,2533.5,1.979004]
[1646704257621,2.06288908,2533.9,2533.5,2.279004]
[1646704257823,0.98709,2533.9,2533.5,0.005074]
[1646704258022,1.07590649,2533.8,2533.5,0.005074]
[1646704258222,1.07590649,2533.8,2533.3,1.97409]
[1646704258422,1.07590649,2533.8,2533.3,2.92973964]
[1646704258623,1.07590649,2533.8,2533.5,0.00507355]
[1646704258922,0.98715,2533.8,2533.5,0.00507355]
[1646704259375,0.98715,2533.8,2533.5,1.9739]
[1646704259764,0.98715,2533.8,2533.5,2.27897425]
[1646704259966,0.98715,2533.8,2533.6,0.98703]
[1646704260166,0.3,2533.9,2533.6,0.98703]
[1646704260366,1.29197305,2534.1,2533.6,0.98703]
[1646704260566,1.07874565,2534.0,2533.7,0.51346775]
[1646704260770,1.07874565,2534.0,2533.7,3.77399925]
[1646704260971,1.07874565,2534.0,2533.7,3.2605315]
[1646704261771,1.07874565,2534.0,2533.7,4.25325559]
[1646704262470,1.07874565,2534.0,2533.8,1.50084226]
[1646704262671,1.07874565,2534.0,2533.8,0.98685]
[1646704264816,1.07874565,2534.0,2533.9,0.51407161]
[1646704265217,1.07874565,2534.0,2533.9,0.81407161]
[1646704265819,1.07874565,2534.0,2533.9,0.3]
[1646704266119,2.02331705,2534.0,2533.7,0.3]
[1646704266319,2.02331705,2534.0,2533.8,0.51388088]
[1646704266320,0.9445714,2534.0,2533.8,0.51388088]
[1646704266519,1.08014824,2533.9,2533.8,0.51388088]
[1646704266719,1.2445714,2534.0,2533.8,0.51388088]
[1646704266973,1.08102072,2533.9,2533.8,0.51388088]
[1646704267371,1.08102072,2533.9,2533.8,0.50954788]
[1646704268374,1.08102072,2533.9,2533.8,1.49650788]
[1646704268773,1.08102072,2533.9,2533.8,1.49217461]
[1646704268973,0.3,2534.0,2533.9,0.703811]
[1646704269176,0.00508125,2534.1,2533.9,0.703811]
[1646704269373,0.00508125,2534.1,2534.0,0.9867904]
[1646704270176,1.28684,2534.2,2534.0,0.9867904]
[1646704270477,0.98674,2534.5,2534.1,3.5]
[1646704270740,0.00508041,2534.2,2534.1,5.4734]
[1646704270939,0.00508041,2534.2,2534.1,6.4734]
[1646704271142,0.00508041,2534.2,2534.1,18.9968]
[1646704271939,0.00476242,2534.3,2534.1,18.9968]
[1646704272140,0.00476242,2534.3,2534.2,16.0234]
[1646704272343,0.00476242,2534.3,2534.2,6.17988]
[1646704272540,0.73039224,2535.1,2534.2,5.78648]
[1646704272742,0.73039224,2535.1,2534.4,2.27317]
[1646704272942,0.01904655,2534.8,2534.4,2.27317]
[1646704273344,0.01904655,2534.8,2534.5,0.9865953]
[1646704273744,0.01904655,2534.8,2534.6,0.3]
[1646704273944,1.71692224,2535.1,2534.7,0.98651]
[1646704274144,0.00477303,2534.8,2534.7,0.98651]
[1646704274969,0.98653,2535.0,2534.7,0.98651]
[1646704275168,0.98653,2535.0,2534.7,1.9730322]
[1646704275375,0.00477296,2534.9,2534.7,1.9730322]
[1646704275574,0.00477296,2534.9,2534.7,2.2730322]
[1646704276373,0.00956677,2534.9,2534.7,2.2730322]
[1646704276574,0.00479381,2534.9,2534.7,2.2730322]
[1646704277375,0.98653,2535.0,2534.7,2.2730322]
[1646704280624,0.98653,2535.0,2534.7,0.3]
[1646704280625,3.14446028,2535.0,2534.7,0.3]
[1646704280827,0.71191914,2534.9,2534.6,0.3]
[1646704281026,1.97339,2534.8,2534.4,1.28671]
[1646704282472,0.00535123,2534.7,2534.4,1.28671]
[1646704282672,0.99204123,2534.7,2534.4,1.28671]
[1646704283075,0.99204123,2534.7,2534.4,0.3]
[1646704283473,0.99204123,2534.7,2534.2,1.2868]
[1646704283674,0.9973925,2534.7,2534.2,1.2868]
[1646704283874,0.99204127,2534.7,2534.2,1.2868]
[1646704284075,0.88941758,2534.5,2534.1,0.9867649]
[1646704284474,1.60133672,2534.5,2534.1,0.9867649]
[1646704285074,0.00535147,2534.4,2534.1,0.9867649]
[1646704285281,0.00535147,2534.4,2534.3,0.98673]
[1646704286118,0.00535147,2534.4,2534.3,0.98023665]
[1646704286318,0.00474029,2534.5,2534.3,0.98023665]
[1646704287418,0.00474025,2534.5,2534.3,0.98023665]
[1646704288022,1.30841939,2534.6,2534.3,0.98023665]
[1646704288619,1.08026236,2534.5,2534.3,0.98023665]
[1646704289020,1.08026236,2534.5,2534.2,1.23640366]
[1646704289670,1.08026236,2534.5,2534.3,0.98673]
[1646704289875,1.08026236,2534.4,2534.3,0.98673]
[1646704290073,1.08026236,2534.4,2534.3,1.53216091]
[1646704290273,1.08026236,2534.4,2534.3,5.03216091]
[1646704290472,0.01895817,2534.9,2534.3,5.03216091]
[1646704290681,1.04817403,2534.8,2534.4,0.54543091]
[1646704290875,1.04817403,2534.8,2534.5,4.48651]
[1646704291174,1.04817403,2534.8,2534.7,1.1750937]
[1646704291382,1.04817403,2534.8,2534.7,4.6750937]
[1646704291577,1.04817403,2534.8,2534.7,4.9750937]
[1646704291777,1.04817403,2534.8,2534.7,5.9750937]
[1646704291981,1.04817403,2534.8,2534.7,3.4613537]
[1646704292280,1.04817403,2534.8,2534.7,2.4613537]
[1646704292479,1.04817403,2534.8,2534.7,2.2726477]
[1646704292679,0.0184731,2535.1,2534.7,1.28626]
[1646704292680,1.04817403,2535.0,2534.7,1.28626]
[1646704292879,0.0184731,2535.1,2534.7,0.3]
[1646704292880,1.04817403,2534.9,2534.7,0.3]
[1646704293121,0.73039224,2535.1,2534.6,2.27252]
[1646704293122,1.04817403,2534.8,2534.6,2.27252]
[1646704293326,1.04817403,2534.7,2534.6,2.27252]
[1646704293524,1.04817403,2534.8,2534.6,2.27252]
[1646704293723,1.04817403,2534.7,2534.6,2.27252]
[1646704294524,1.04817403,2535.0,2534.6,2.27252]
[1646704295225,2.22911386,2535.0,2534.6,2.27252]
[1646704295423,1.04817403,2534.9,2534.6,2.27252]
[1646704295624,1.04817403,2534.9,2534.8,0.98655]
[1646704296229,1.48093983,2535.0,2534.8,0.98655]
[1646704296430,1.04585508,2534.9,2534.8,0.98655]
[1646704300397,1.0049531,2535.1,2534.8,0.98655]
[1646704300398,1.04585508,2535.0,2534.8,0.98655]
[1646704300646,1.04585508,2534.9,2534.8,0.98655]
[1646704304677,1.04585508,2534.9,2534.8,13.11655]
[1646704305079,1.04585508,2534.9,2534.8,14.11655]
[1646704305278,1.04585508,2534.9,2534.8,1.98655]
[1646704305679,1.04585508,2534.9,2534.8,0.98655]
[1646704308424,1.04215848,2534.9,2534.8,0.98655]
[1646704308627,1.04215848,2535.0,2534.8,0.98655]
[1646704308826,1.0475095,2535.0,2534.8,0.98655]
[1646704309028,1.04215848,2534.9,2534.6,3.21518395]
[1646704309626,1.04215848,2534.9,2534.7,0.3]
[1646704309827,1.04215848,2534.8,2534.7,0.3]
[1646704310025,1.04215848,2534.8,2534.7,2.27301]
[1646704310225,1.04215848,2534.8,2534.7,3.2594926]
[1646704314577,1.04215848,2534.8,2534.7,4.2594926]
[1646704315381,1.04215848,2534.8,2534.7,4.83502926]
[1646704316426,1.04215848,2534.8,2534.7,4.2520616]
[1646704317227,1.04215848,2534.8,2534.7,4.83477634]
[1646704317426,1.04215848,2534.8,2534.7,4.83463026]
[1646704317628,1.04215848,2534.8,2534.7,4.2520616]
[1646704317827,1.04215848,2534.8,2534.7,4.83458786]
[1646704319236,0.0184731,2535.1,2534.8,0.98629]
[1646704319480,0.00506591,2534.9,2534.8,2.65419]
[1646704319880,0.00506591,2534.9,2534.8,3.65419]
[1646704320483,0.0184731,2535.1,2534.9,3.9452993]
[1646704320681,0.00326594,2535.0,2534.9,5.14711112]
[1646704320882,0.00326594,2535.0,2534.9,6.14711112]
[1646704321692,0.0184731,2535.1,2534.9,6.14711112]
[1646704322079,0.0217391,2535.1,2534.9,6.14711112]
[1646704322283,0.1021497,2535.4,2535.1,17.63]
[1646704322482,0.1021497,2535.4,2535.2,0.98611]
[1646704322682,0.1021497,2535.4,2535.2,13.11611]
[1646704322981,0.1021497,2535.4,2535.3,2.95819]
[1646704323233,0.1021497,2535.4,2535.3,4.04069703]
[1646704323433,0.1021497,2535.4,2535.3,5.04069703]
[1646704323834,0.1021497,2535.4,2535.3,3.95819]
[1646704324333,0.1021497,2535.4,2535.3,2.95819]
[1646704324938,0.1021497,2535.4,2535.2,1.9721246]
[1646704324939,0.1021497,2535.4,2535.2,0.98611]
[1646704326736,0.10541047,2535.4,2535.2,0.98611]
[1646704327680,0.1021497,2535.4,2535.2,0.98611]
[1646704327879,0.10750137,2535.4,2535.2,0.98611]
[1646704328881,0.1021497,2535.4,2535.2,0.98611]
[1646704329081,0.10750137,2535.4,2535.2,0.98611]
[1646704330088,0.1021497,2535.4,2535.2,0.98611]
[1646704330286,0.10750137,2535.4,2535.2,0.98611]
[1646704331335,0.1021497,2535.4,2535.2,0.98611]
[1646704331532,0.10750137,2535.4,2535.2,0.98611]
[1646704332432,0.02011411,2535.4,2535.2,0.98611]
[1646704332930,0.02528516,2535.4,2535.3,0.9145981]
[1646704333131,0.02528516,2535.4,2535.3,2.8869581]
[1646704333331,0.02528516,2535.4,2535.3,3.8869581]
[1646704333731,0.02011411,2535.4,2535.3,3.8869581]
[1646704334240,0.02011411,2535.4,2535.3,1.97236]
[1646704336082,0.02011411,2535.4,2535.3,2.86586]
[1646704336882,0.00507878,2535.5,2535.4,4.0]
[1646704337083,0.00507878,2535.5,2535.3,3.8518712]
[1646704337284,0.0234264,2535.8,2535.4,0.93221918]
[1646704337685,0.00507878,2535.5,2535.4,0.93221918]
[1646704338524,0.0234264,2535.8,2535.4,0.93221918]
[1646704338724,0.00507871,2535.6,2535.4,0.93221918]
[1646704339127,0.00507871,2535.6,2535.4,2.90439658]
[1646704339326,0.00507871,2535.6,2535.4,3.90439658]
[1646704339728,0.0234264,2535.8,2535.4,3.90439658]
[1646704339929,0.0050726,2535.6,2535.5,1.9723]
[1646704340130,0.99579318,2535.6,2535.5,1.9723]
[1646704340832,0.99072058,2535.6,2535.5,1.9723]
[1646704341031,0.99072058,2535.7,2535.5,1.9723]
[1646704341232,0.99579315,2535.7,2535.5,1.9723]
[1646704341432,0.99072058,2535.6,2535.5,1.9723]
[1646704343482,0.99546907,2535.7,2535.5,1.9723]
[1646704343682,0.99072058,2535.6,2535.5,1.9723]
[1646704346031,0.99546907,2535.7,2535.5,1.9723]
[1646704346232,0.99072058,2535.6,2535.5,1.9723]
[1646704346533,0.99072058,2535.6,2535.4,1.98609]
[1646704346534,0.99072058,2535.6,2535.4,0.98609]
[1646704348333,0.99550176,2535.6,2535.4,0.98609]
[1646704348539,0.00478118,2535.6,2535.4,0.98609]
[1646704349388,2.15116242,2535.8,2535.4,0.98609]
[1646704349589,0.00478118,2535.6,2535.4,0.98609]
[1646704350189,0.9906453,2535.5,2535.4,0.98609]
[1646704350389,0.99064492,2535.5,2535.4,0.98609]
[1646704350594,2.15116242,2535.8,2535.4,0.98609]
[1646704350796,0.00477929,2535.6,2535.4,0.98609]
[1646704351690,2.15116242,2535.8,2535.4,0.98609]
[1646704351891,0.99068791,2535.7,2535.4,0.98609]
[1646704352091,0.00477749,2535.6,2535.4,0.98609]
[1646704352894,2.15116242,2535.8,2535.4,0.98609]
[1646704353124,0.00477749,2535.6,2535.4,0.98609]
[1646704353726,0.99069188,2535.5,2535.4,0.98609]
[1646704353927,0.00477749,2535.6,2535.4,0.98609]
[1646704354130,0.99098754,2535.5,2535.4,1.9721731]
[1646704354330,0.00478246,2535.6,2535.4,3.9443631]
[1646704354731,0.99098218,2535.5,2535.4,3.9443631]
[1646704354934,0.0234264,2535.8,2535.7,0.9861]
[1646704355134,1.01447512,2535.8,2535.7,0.9861]
[1646704356436,1.01447512,2535.8,2535.6,2.72526936]
[1646704356637,0.99104872,2535.7,2535.6,2.72526936]
[1646704357288,0.99104872,2535.7,2535.6,0.75306936]
[1646704357688,4.49104872,2535.7,2535.6,0.75306936]
[1646704360488,5.49104872,2535.7,2535.6,0.75306936]
[1646704360740,5.68804872,2535.7,2535.6,0.75306936]
[1646704362843,5.49104872,2535.7,2535.6,0.75306936]
[1646704363644,1.99104872,2535.7,2535.6,0.75306936]
[1646704363849,0.99104872,2535.7,2535.6,0.75306936]
[1646704364380,1.71279662,2535.7,2535.6,0.75306936]
[1646704365593,0.99104872,2535.7,2535.6,0.75306936]
[1646704366187,1.71309305,2535.7,2535.6,0.75306936]
[1646704366387,0.99104872,2535.7,2535.6,0.75306936]
[1646704368732,0.99104872,2535.7,2535.6,1.64747098]
[1646704370334,0.02820715,2535.8,2535.6,6.13355648]
[1646704370636,0.02820715,2535.8,2535.7,4.48597]
[1646704371043,0.0234264,2535.8,2535.7,5.48597]
[1646704371439,0.02821978,2535.8,2535.7,5.48597]
[1646704372285,0.0234264,2535.8,2535.7,5.48597]
[1646704372886,0.0234264,2535.8,2535.7,1.98597]
[1646704373184,0.0234264,2535.8,2535.7,0.98597]
[1646704373383,0.0234264,2535.8,2535.7,4.48597]
[1646704373588,0.0388186,2536.0,2535.8,5.5]
[1646704373788,0.0135068,2536.4,2536.1,5.4857943]
[1646704373985,0.0135068,2536.4,2536.2,3.5]
[1646704374184,0.0135068,2536.4,2536.2,3.8]
[1646704374384,0.0135068,2536.4,2536.2,0.3]
[1646704374786,0.0025152,2536.5,2536.1,1.2857943]
[1646704374988,3.39173137,2536.7,2536.3,0.3934]
[1646704374989,0.0050304,2536.7,2536.3,0.3934]
[1646704375185,0.04035806,2536.4,2536.3,5.3214293]
[1646704375386,0.00915042,2536.4,2536.3,6.1124293]
[1646704375640,0.00915042,2536.4,2536.3,7.1124293]
[1646704375834,0.00915042,2536.4,2536.3,19.2424293]
[1646704376034,0.00915042,2536.4,2536.3,6.7190293]
[1646704376337,0.00915042,2536.4,2536.3,5.22160991]
[1646704377435,0.00915042,2536.4,2536.1,0.00211757]
[1646704377634,0.01418082,2536.4,2536.1,0.00211757]
[1646704378236,0.01418082,2536.4,2536.0,1.9719647]
[1646704378634,1.00562622,2536.4,2536.1,0.00535615]
[1646704379393,1.00027082,2536.4,2536.1,1.97199]
[1646704379593,1.00027082,2536.4,2536.2,1.97184]
[1646704379797,0.01953622,2536.4,2536.2,1.97184]
[1646704380294,0.01953622,2536.4,2536.2,3.943611]
[1646704380493,0.01953622,2536.4,2536.3,0.98591]
[1646704380696,0.01418082,2536.4,2536.3,0.98591]
[1646704380899,0.01953378,2536.4,2536.3,1.28591]
[1646704381898,0.01418082,2536.4,2536.3,1.28591]
[1646704382297,0.01418082,2536.4,2536.3,0.98591]
[1646704382596,0.01418082,2536.4,2536.1,1.97727128]
[1646704382796,0.01418082,2536.4,2536.1,1.29141378]
[1646704382999,3.51418082,2536.4,2535.6,3.85155936]
[1646704383238,0.01418082,2536.4,2535.6,3.85155936]
[1646704383441,1.98630082,2536.4,2535.6,3.72535936]
[1646704383638,1.98630082,2536.4,2535.6,4.71152936]
[1646704384044,0.97255351,2536.1,2535.6,4.71152936]
[1646704384242,0.97255351,2536.1,2535.8,0.9861516]
[1646704384440,0.97255351,2536.1,2535.9,0.00535874]
[1646704385343,0.98613,2536.2,2535.8,0.9861516]
[1646704385745,0.98613,2536.2,2535.9,0.00535874]
[1646704385943,0.94411368,2536.2,2535.9,0.00535874]
[1646704386344,0.88180299,2536.1,2536.0,0.9861]
[1646704386546,0.88180299,2536.1,2535.8,0.9861516]
[1646704386883,0.88180299,2536.1,2535.9,0.0053587]
[1646704386884,5.4724,2536.0,2535.9,0.0053587]
[1646704387484,6.4724,2536.0,2535.9,0.0053587]
[1646704387686,7.46171222,2536.0,2535.9,0.0053587]
[1646704387884,6.74047345,2536.0,2535.8,5.16e-05]
[1646704388085,3.5,2535.9,2535.8,5.16e-05]
[1646704388286,4.5,2535.9,2535.8,0.00541038]
[1646704388687,1.0,2535.9,2535.8,0.00541038]
[1646704389088,3.5,2535.9,2535.8,5.16e-05]
[1646704389286,4.5,2535.9,2535.8,5.16e-05]
[1646704390488,5.45172582,2535.9,2535.8,5.16e-05]
[1646704390734,6.17296459,2535.9,2535.8,5.16e-05]
[1646704391443,5.45172582,2535.9,2535.8,5.16e-05]
[1646704393038,6.17112051,2535.9,2535.8,5.16e-05]
[1646704393838,9.17112051,2535.9,2535.8,5.16e-05]
[1646704394037,6.17112051,2535.9,2535.8,5.16e-05]
[1646704394240,9.17112051,2535.9,2535.8,5.16e-05]
[1646704395281,8.45172582,2535.9,2535.8,5.16e-05]
[1646704395480,9.43810582,2535.9,2535.6,0.75306936]
[1646704395685,0.95172582,2535.8,2535.6,0.75306936]
[1646704396484,1.67102574,2535.8,2535.6,0.75813254]
[1646704397088,3.5,2535.7,2535.6,0.75813254]
[1646704397293,9.17102574,2535.7,2535.6,0.75813254]
[1646704397485,8.36802574,2535.7,2535.6,0.75306936]
[1646704397686,5.86802574,2535.7,2535.6,0.75306936]
[1646704397988,5.86802574,2535.7,2535.6,0.75814977]
[1646704398232,9.36802574,2535.7,2535.6,0.75814977]
[1646704398440,9.66802574,2535.7,2535.0,0.3945]
[1646704398637,3.71929992,2535.4,2535.0,0.3945]
[1646704398831,3.0,2535.2,2535.0,0.3945]
[1646704399032,0.95172582,2535.1,2535.0,0.3945]
[1646704399634,1.99766056,2535.1,2535.0,0.3945]
[1646704399835,1.99766056,2535.1,2534.0,2.59733271]
[1646704400034,1.10688339,2534.7,2534.1,0.61977109]
[1646704401039,0.98678,2534.6,2534.1,0.61977109]
[1646704401245,3.5,2534.5,2534.3,0.00512766]
[1646704401444,0.98678,2534.6,2534.3,0.00512766]
[1646704401889,0.98678,2534.6,2534.4,0.61570909]
[1646704402093,4.7221,2535.3,2534.4,0.61570909]
[1646704402290,0.96727613,2535.2,2534.5,1.379923]
[1646704402489,0.96727613,2535.2,2534.7,0.98651]
[1646704402688,0.98654,2535.1,2534.7,1.28651]
[1646704402890,0.98654,2535.1,2534.7,0.3]
[1646704403091,0.98654,2535.1,2534.4,0.3]
[1646704403290,0.98654,2535.1,2534.1,4.1013428]
[1646704403291,0.97513132,2535.0,2534.2,0.3]
[1646704403489,3.5,2534.9,2534.3,0.6078353]
[1646704403691,3.6971,2535.2,2534.8,0.00187687]
[1646704403891,1.97339,2535.0,2534.8,0.00187687]
[1646704404090,0.97518675,2534.9,2534.8,0.00187687]
[1646704404794,1.97339,2535.0,2534.5,1.28664]
[1646704404991,1.97339,2535.0,2534.7,0.00187691]
[1646704405837,1.97339,2535.0,2534.5,1.28664]
[1646704406237,1.97339,2535.0,2534.7,0.00511679]
[1646704406841,1.97339,2535.0,2534.7,0.99168679]
[1646704407040,1.97339,2535.0,2534.7,0.98657]
[1646704407242,1.97339,2535.0,2534.7,1.28657]
[1646704407444,1.97339,2535.0,2534.7,1.29179538]
[1646704408241,1.97339,2535.0,2534.7,1.28657]
[1646704408441,1.97339,2535.0,2534.7,1.29179538]
[1646704409484,1.97339,2535.0,2534.7,1.28657]
[1646704409883,3.5,2534.9,2534.7,0.00522538]
[1646704410286,3.02104608,2535.0,2534.7,0.00522538]
[1646704410789,3.02104608,2535.0,2534.1,3.27337]
[1646704410986,0.97444034,2534.9,2534.7,0.00506263]
[1646704411187,1.17305479,2534.8,2534.7,0.00506263]
[1646704411387,4.67305479,2534.8,2534.7,0.00506263]
[1646704411590,2.14752348,2534.8,2534.7,0.00506263]
[1646704411987,2.14752348,2534.8,2534.1,1.97337]
[1646704412187,0.98683,2534.7,2534.6,0.00506267]
[1646704412390,3.5,2534.7,2534.6,0.00506267]
[1646704412991,5.47400937,2534.7,2534.6,0.00506267]
[1646704413239,0.98697,2534.6,2534.1,0.5]
[1646704413438,1.97400937,2534.5,2534.1,0.5]
[1646704413636,1.0,2534.5,2534.1,0.5]
[1646704414038,1.22331421,2534.4,2534.1,0.5]
[1646704414239,1.97391,2534.3,2534.1,0.5]
[1646704414641,1.97391,2534.3,2534.2,0.00507399]
[1646704414642,2.27391,2534.3,2534.2,0.00507399]
[1646704415041,5.77391,2534.3,2534.2,0.00507399]
[1646704415247,6.77391,2534.3,2534.2,0.00507399]
[1646704415541,5.77391,2534.3,2534.1,0.49887159]
[1646704415744,1.97391,2534.3,2534.1,0.49887159]
[1646704415945,1.98693,2534.5,2534.1,0.49887159]
[1646704415946,0.98693,2534.5,2534.1,0.49887159]
[1646704416347,1.28693,2534.5,2534.1,0.49887159]
[1646704416547,0.98693,2534.5,2534.1,0.49887159]
[1646704416748,1.28693,2534.5,2534.1,0.49887159]
[1646704417888,0.98693,2534.5,2534.1,0.49887159]
[1646704418086,1.28693,2534.5,2534.1,0.50422193]
[1646704418490,0.98693,2534.5,2534.1,0.50422193]
[1646704418693,1.28693,2534.5,2534.1,0.50422193]
[1646704419090,0.98693,2534.5,2534.1,0.49887159]
[1646704419389,1.28693,2534.5,2534.1,0.50422193]
[1646704419589,0.98693,2534.5,2534.1,0.50422193]
[1646704419793,1.28693,2534.5,2534.1,0.50422193]
[1646704420405,0.98693,2534.5,2534.1,0.79887159]
[1646704420652,1.97346,2534.8,2534.1,0.80422193]
[1646704420840,1.1327,2534.9,2534.1,1.79088553]
[1646704421042,1.1327,2534.9,2534.2,0.60863823]
[1646704421546,2.864,2535.1,2534.5,0.98662]
[1646704421848,4.9192,2535.3,2534.5,0.3]
[1646704422043,0.97378042,2535.2,2534.5,0.3]
[1646704422245,1.2208,2535.4,2534.4,1.73436844]
[1646704422443,1.2208,2535.4,2534.5,0.60917347]
[1646704422644,2.38138912,2535.6,2534.9,0.98326201]
[1646704422844,0.97396878,2535.5,2534.9,1.96972201]
[1646704423145,0.97396878,2535.5,2534.9,2.26972201]
[1646704423744,0.97396878,2535.5,2534.9,0.3]
[1646704423945,0.98664,2535.3,2534.7,0.3]
[1646704424144,0.97452375,2535.2,2534.6,0.3]
[1646704424393,0.97452375,2535.2,2534.3,1.2051]
[1646704424394,0.97452375,2535.2,2534.3,0.3]
[1646704424596,0.97452375,2535.2,2534.4,0.60990488]
[1646704424796,0.97452375,2535.2,2534.5,0.60990488]
[1646704425399,1.9023497,2535.3,2534.6,0.9866]
[1646704425598,0.97452375,2535.2,2534.6,0.9866]
[1646704425802,1.96121375,2535.2,2534.4,0.3]
[1646704425999,0.97452375,2535.1,2534.5,0.61058676]
[1646704426199,2.94781375,2535.1,2534.5,0.61058676]
[1646704426399,0.97452375,2535.0,2534.5,0.61058676]
[1646704426599,0.97452375,2535.0,2534.5,1.55440131]
[1646704426799,0.97452375,2535.0,2534.5,1.93042455]
[1646704427000,0.98665,2535.0,2534.6,0.61069284]
[1646704427401,0.98665,2535.0,2534.6,0.91069284]
[1646704427602,0.98665,2535.0,2534.5,2.23042455]
[1646704427806,0.98665,2535.0,2534.6,0.61055806]
[1646704428641,0.97679204,2534.9,2534.5,0.3]
[1646704428842,0.97679204,2534.9,2534.4,1.97311]
[1646704428843,0.97679204,2534.9,2534.4,2.27311]
[1646704429041,0.97679204,2534.9,2534.5,0.61119731]
[1646704429443,0.97679204,2534.9,2534.5,1.59781731]
[1646704429643,0.97679204,2534.9,2534.6,0.61119731]
[1646704429844,0.97679204,2534.9,2534.6,1.81094397]
[1646704430044,0.97679204,2534.9,2534.7,0.61196699]
[1646704430446,1.2345,2535.3,2534.8,0.98653]
[1646704430649,3.21467964,2535.6,2534.9,0.61184298]
[1646704430650,0.97809201,2535.2,2534.9,0.61184298]
[1646704430844,3.21467964,2535.6,2534.9,0.61184298]
[1646704430845,0.97809201,2535.1,2534.9,0.61184298]
[1646704431048,2.59827972,2535.6,2534.9,0.61184298]
[1646704431245,0.97820642,2535.5,2535.0,0.94723131]
[1646704431644,0.97820642,2535.5,2535.0,1.93369131]
[1646704432089,0.98647,2535.4,2535.0,1.93369131]
[1646704432490,0.97820642,2535.3,2535.0,1.93369131]
[1646704433090,0.97820642,2535.2,2535.0,2.23369131]
[1646704433293,0.97820642,2535.1,2535.0,2.23369131]
[1646704433489,0.97820642,2535.4,2535.0,2.23369131]
[1646704433693,0.97820642,2535.4,2535.0,1.24723131]
[1646704434489,0.97820642,2535.4,2534.7,0.9865218]
[1646704434690,0.97820642,2535.4,2534.8,0.61364559]
[1646704434691,1.96478642,2535.4,2534.8,0.61364559]
[1646704434891,0.97820642,2535.3,2534.8,0.61364559]
[1646704435091,0.97820642,2535.3,2534.9,0.61364559]
[1646704435290,0.97820642,2535.3,2534.9,0.91364559]
[1646704435491,0.97820642,2535.3,2534.6,3.2595282]
[1646704435739,1.97321,2535.5,2534.7,1.81336486]
[1646704435740,0.97820642,2535.2,2534.7,1.81336486]
[1646704435937,1.16766546,2535.4,2534.7,1.81336486]
[1646704435938,0.97820642,2535.3,2534.8,0.61386247]
[1646704436140,0.97820642,2535.1,2534.8,0.61386247]
[1646704436341,0.97820642,2535.0,2534.8,0.61386247]
[1646704436539,0.98658,2535.2,2534.6,2.27297]
[1646704436740,0.97712678,2535.1,2534.7,0.61399534]
[1646704436941,3.05876538,2535.4,2534.7,0.61399534]
[1646704436942,0.97712678,2535.0,2534.7,0.61399534]
[1646704437144,0.97712678,2534.9,2534.7,0.61399534]
[1646704437343,0.97712678,2534.8,2534.7,0.61399534]
[1646704437543,0.97733745,2535.3,2534.7,0.61399534]
[1646704437742,0.97733417,2535.2,2534.7,0.61399534]
[1646704437941,0.97733417,2535.1,2534.7,0.61399534]
[1646704438144,0.97733417,2535.0,2534.7,0.61399534]
[1646704438442,0.97733417,2534.9,2534.7,0.61399534]
[1646704438643,0.97733417,2534.8,2534.7,0.61399534]
[1646704438845,1.69688412,2535.3,2534.7,0.61399534]
[1646704439043,1.9641942,2535.2,2534.7,0.61399534]
[1646704439243,0.9775842,2535.1,2534.7,0.61399534]
[1646704440285,0.9775842,2535.1,2534.7,1.82964749]
[1646704440490,0.9775842,2535.1,2534.7,1.21565215]
[1646704440692,0.9775842,2535.0,2534.8,1.60055441]
[1646704440889,0.9775842,2534.9,2534.8,0.98654]